fUSD/lending_fUSD_20260605
["ID","MTS","AMOUNT","RATE_DAILY","PERIOD"]
[424114216,1780601279000,200.0,0.0001332,2]
[424114218,1780601301000,-150.0,0.00014105,2]
[424114220,1780601306000,168.38,0.00013314,2]
[424114219,1780601306000,168.38,0.00010651,2]
[424114222,1780601334000,548.09189229,0.00013317,2]
[424114221,1780601334000,1887.59810771,0.00013317,2]
[424114224,1780601354000,2000.0,0.00030134,120]
[424114223,1780601354000,-250.0,0.00014105,2]
[424114225,1780601356000,297.67,0.00012711,2]
[424114226,1780601407000,-150.0,0.00014106,2]
[424114227,1780601415000,524.17,0.00013319,2]
[424114228,1780601424000,23797.43302973,0.000149,3]
[424114229,1780601424000,1202.56697027,0.000149,3]
[424114255,1780601432000,-413.96857692,0.00014121,2]
[424114259,1780601432000,-500.0,0.00014121,2]
[424114257,1780601432000,-500.0,0.00014121,2]
[424114262,1780601432000,-500.0,0.00014121,2]
[424114263,1780601432000,-500.0,0.00014121,2]
[424114266,1780601432000,-500.0,0.00014121,2]
[424114264,1780601432000,-500.0,0.00014121,2]
[424114271,1780601432000,-500.0,0.00014121,2]
[424114269,1780601432000,-500.0,0.00014121,2]
[424114277,1780601432000,-500.0,0.00014121,2]
[424114282,1780601432000,-500.0,0.00014121,2]
[424114283,1780601432000,-500.0,0.00014121,2]
[424114284,1780601432000,-500.0,0.00014121,2]
[424114279,1780601432000,-500.0,0.00014121,2]
[424114280,1780601432000,-500.0,0.00014121,2]
[424114281,1780601432000,-500.0,0.00014121,2]
[424114288,1780601432000,-500.0,0.00014121,2]
[424114250,1780601432000,-500.0,0.00014121,2]
[424114275,1780601432000,-500.0,0.00014121,2]
[424114249,1780601432000,-52.51857692,0.00014121,2]
[424114234,1780601432000,-151.09169578,0.00014121,2]
[424114251,1780601432000,-86.03142308,0.00014121,2]
[424114232,1780601432000,-150.0,0.00014121,2]
[424114233,1780601432000,-500.0,0.00014121,2]
[424114230,1780601432000,-436.15092908,0.00014108,2]
[424114231,1780601432000,-364.2486942,0.00014115,2]
[424114235,1780601432000,-500.0,0.00014121,2]
[424114285,1780601432000,-600.0,0.00014121,2]
[424114237,1780601432000,-500.0,0.00014121,2]
[424114236,1780601432000,-500.0,0.00014121,2]
[424114248,1780601432000,-447.48142308,0.00014121,2]
[424114238,1780601432000,-500.0,0.00014121,2]
[424114243,1780601432000,-500.0,0.00014121,2]
[424114244,1780601432000,-126.25341399,0.00014121,2]
[424114240,1780601432000,-500.0,0.00014121,2]
[424114242,1780601432000,-263.48454583,0.00014121,2]
[424114241,1780601432000,-236.51545417,0.00014121,2]
[424114245,1780601432000,-373.74658601,0.00014121,2]
[424114247,1780601432000,-86.58514505,0.00014121,2]
[424114246,1780601432000,-413.41485495,0.00014121,2]
[424114239,1780601432000,-500.0,0.00014121,2]
[424114286,1780601432000,-500.0,0.00014121,2]
[424114273,1780601432000,-180.73084041,0.00014121,2]
[424114289,1780601432000,-395.47972883,0.00014121,2]
[424114316,1780601432000,-436.15092908,0.00014199,2]
[424114310,1780601432000,-1002.384263,0.00014182,2]
[424114315,1780601432000,-150.0,0.00014199,2]
[424114314,1780601432000,-150.0,0.00014193,2]
[424114312,1780601432000,-150.0,0.00014184,2]
[424114318,1780601432000,-150.0,0.00014205,2]
[424114321,1780601432000,-150.0,0.00014216,2]
[424114323,1780601432000,-150.0,0.00014226,2]
[424114317,1780601432000,-150.0,0.000142,2]
[424114319,1780601432000,-150.0,0.00014209,2]
[424114328,1780601432000,-436.15092908,0.00014245,2]
[424114320,1780601432000,-436.15092908,0.00014214,2]
[424114327,1780601432000,-150.0,0.00014237,2]
[424114326,1780601432000,-150.0,0.00014237,2]
[424114324,1780601432000,-436.15092908,0.00014229,2]
[424114325,1780601432000,-150.0,0.00014237,2]
[424114330,1780601432000,-150.0,0.00014248,2]
[424114287,1780601432000,-500.0,0.00014121,2]
[424114329,1780601432000,-27116.66,0.00014247,2]
[424114308,1780601432000,-1787.446081,0.00014182,2]
[424114311,1780601432000,-436.15092908,0.00014184,2]
[424114322,1780601432000,-150.0,0.00014218,2]
[424114309,1780601432000,-475.966749,0.00014182,2]
[424114290,1780601432000,-436.15092908,0.00014123,2]
[424114303,1780601432000,-150.0,0.00014173,2]
[424114313,1780601432000,-612.159089,0.0001419,2]
[424114292,1780601432000,-150.0,0.00014126,2]
[424114302,1780601432000,-436.15092908,0.00014169,2]
[424114291,1780601432000,-150.0,0.00014125,2]
[424114294,1780601432000,-150.0,0.0001413,2]
[424114295,1780601432000,-436.15092908,0.00014139,2]
[424114297,1780601432000,-150.0,0.00014143,2]
[424114293,1780601432000,-150.0,0.0001413,2]
[424114299,1780601432000,-436.15092908,0.00014154,2]
[424114298,1780601432000,-150.0,0.00014154,2]
[424114305,1780601432000,-392.0,0.00014181,2]
[424114300,1780601432000,-150.0,0.00014162,2]
[424114296,1780601432000,-150.0,0.00014142,2]
[424114307,1780601432000,-184.092933,0.00014182,2]
[424114306,1780601432000,-150.0,0.00014181,2]
[424114301,1780601432000,-150.0,0.00014163,2]
[424114304,1780601432000,-150.0,0.00014181,2]
[424114363,1780601433000,-150.0,0.00014369,2]
[424114374,1780601433000,-150.0,0.00014406,2]
[424114373,1780601433000,-150.0,0.00014404,2]
[424114367,1780601433000,-150.0,0.00014387,2]
[424114375,1780601433000,-436.15092908,0.00014411,2]
[424114368,1780601433000,-150.0,0.00014387,2]
[424114366,1780601433000,-436.15092908,0.00014381,2]
[424114362,1780601433000,-150.0,0.00014368,2]
[424114372,1780601433000,-150.0,0.00014402,2]
[424114364,1780601433000,-150.0,0.00014374,2]
[424114365,1780601433000,-150.0,0.00014376,2]
[424114369,1780601433000,-150.0,0.00014387,2]
[424114386,1780601433000,-150.0,0.00014457,2]
[424114377,1780601433000,-150.0,0.00014424,2]
[424114378,1780601433000,-436.15092908,0.00014426,2]
[424114376,1780601433000,-150.0,0.00014416,2]
[424114380,1780601433000,-150.0,0.00014431,2]
[424114384,1780601433000,-150.0,0.00014452,2]
[424114383,1780601433000,-150.0,0.00014443,2]
[424114381,1780601433000,-150.0,0.00014438,2]
[424114379,1780601433000,-150.0,0.0001443,2]
[424114385,1780601433000,-436.15092908,0.00014456,2]
[424114382,1780601433000,-436.15092908,0.00014441,2]
[424114360,1780601433000,-150.0,0.00014353,2]
[424114387,1780601433000,-150.0,0.00014459,2]
[424114370,1780601433000,-150.0,0.00014395,2]
[424114358,1780601433000,-150.0,0.00014349,2]
[424114338,1780601433000,-436.15092908,0.00014275,2]
[424114359,1780601433000,-436.15092908,0.00014351,2]
[424114388,1780601433000,-150.0,0.00014459,2]
[424114331,1780601433000,-150.0,0.00014256,2]
[424114340,1780601433000,-150.0,0.0001429,2]
[424114333,1780601433000,-436.15092908,0.0001426,2]
[424114332,1780601433000,-150.0,0.00014258,2]
[424114339,1780601433000,-150.0,0.00014281,2]
[424114334,1780601433000,-150.0,0.00014261,2]
[424114336,1780601433000,-150.0,0.00014269,2]
[424114335,1780601433000,-150.0,0.00014265,2]
[424114337,1780601433000,-150.0,0.00014274,2]
[424114344,1780601433000,-150.0,0.00014293,2]
[424114341,1780601433000,-436.15092908,0.0001429,2]
[424114343,1780601433000,-500.0,0.00014293,2]
[424114352,1780601433000,-150.0,0.00014331,2]
[424114342,1780601433000,-150.0,0.00014292,2]
[424114345,1780601433000,-150.0,0.00014301,2]
[424114347,1780601433000,-150.0,0.00014311,2]
[424114348,1780601433000,-150.0,0.00014312,2]
[424114349,1780601433000,-4000.0,0.00014318,2]
[424114351,1780601433000,-436.15092908,0.0001432,2]
[424114346,1780601433000,-436.15092908,0.00014305,2]
[424114350,1780601433000,-150.0,0.0001432,2]
[424114355,1780601433000,-150.0,0.00014344,2]
[424114353,1780601433000,-150.0,0.00014332,2]
[424114356,1780601433000,-150.0,0.00014344,2]
[424114357,1780601433000,-150.0,0.00014348,2]
[424114361,1780601433000,-436.15092908,0.00014366,2]
[424114354,1780601433000,-436.15092908,0.00014335,2]
[424114398,1780601433000,-150.0,0.00014501,2]
[424114371,1780601433000,-436.15092908,0.00014396,2]
[424114393,1780601433000,-150.0,0.00014481,2]
[424114414,1780601433000,-150.0,0.00014558,2]
[424114424,1780601433000,-150.0,0.00014598,2]
[424114428,1780601433000,-436.15092908,0.00014608,2]
[424114430,1780601433000,-436.15092908,0.00014623,2]
[424114429,1780601433000,-150.0,0.00014612,2]
[424114435,1780601433000,-436.15092908,0.00014638,2]
[424114436,1780601433000,-150.0,0.00014644,2]
[424114425,1780601433000,-566.46024627,0.000146,2]
[424114434,1780601433000,-150.0,0.00014634,2]
[424114426,1780601433000,-150.0,0.00014601,2]
[424114431,1780601433000,-150.0,0.00014626,2]
[424114432,1780601433000,-150.0,0.00014627,2]
[424114433,1780601433000,-150.0,0.0001463,2]
[424114427,1780601433000,-150.0,0.00014606,2]
[424114438,1780601433000,-150.0,0.00014649,2]
[424114437,1780601433000,-150.0,0.00014649,2]
[424114446,1780601433000,-436.15092908,0.00014684,2]
[424114445,1780601433000,-150.0,0.00014681,2]
[424114442,1780601433000,-150.0,0.00014668,2]
[424114441,1780601433000,-436.15092908,0.00014653,2]
[424114439,1780601433000,-4000.0,0.00014651,2]
[424114440,1780601433000,-150.0,0.00014653,2]
[424114444,1780601433000,-150.0,0.0001467,2]
[424114448,1780601433000,-150.0,0.00014687,2]
[424114447,1780601433000,-215.0,0.00014685,2]
[424114449,1780601433000,-150.0,0.00014687,2]
[424114389,1780601433000,-150.0,0.00014462,2]
[424114415,1780601433000,-436.15092908,0.00014562,2]
[424114423,1780601433000,-150.0,0.00014593,2]
[424114443,1780601433000,-436.15092908,0.00014668,2]
[424114417,1780601433000,-500.0,0.00014567,2]
[424114416,1780601433000,-150.0,0.00014564,2]
[424114390,1780601433000,-436.15092908,0.00014472,2]
[424114391,1780601433000,-150.0,0.00014472,2]
[424114396,1780601433000,-436.15092908,0.00014487,2]
[424114392,1780601433000,-150.0,0.0001448,2]
[424114394,1780601433000,-150.0,0.00014487,2]
[424114397,1780601433000,-150.0,0.00014499,2]
[424114395,1780601433000,-150.0,0.00014487,2]
[424114400,1780601433000,-150.0,0.00014515,2]
[424114410,1780601433000,-150.0,0.00014546,2]
[424114401,1780601433000,-150.0,0.00014515,2]
[424114399,1780601433000,-436.15092908,0.00014502,2]
[424114405,1780601433000,-436.15092908,0.00014532,2]
[424114402,1780601433000,-436.15092908,0.00014517,2]
[424114403,1780601433000,-150.0,0.00014518,2]
[424114418,1780601433000,-150.0,0.0001457,2]
[424114421,1780601433000,-150.0,0.00014585,2]
[424114404,1780601433000,-150.0,0.00014522,2]
[424114420,1780601433000,-436.15092908,0.00014578,2]
[424114422,1780601433000,-436.15092908,0.00014593,2]
[424114411,1780601433000,-436.15092908,0.00014547,2]
[424114413,1780601433000,-150.0,0.00014558,2]
[424114412,1780601433000,-150.0,0.00014555,2]
[424114409,1780601433000,-150.0,0.00014543,2]
[424114407,1780601433000,-150.0,0.00014542,2]
[424114406,1780601433000,-150.0,0.00014537,2]
[424114408,1780601433000,-150.0,0.00014543,2]
[424114419,1780601433000,-150.0,0.00014574,2]
[424114455,1780601434000,-150.0,0.00014712,2]
[424114451,1780601434000,-150.0,0.00014691,2]
[424114450,1780601434000,-150.0,0.00014687,2]
[424114452,1780601434000,-436.15092908,0.00014699,2]
[424114453,1780601434000,-150.0,0.00014705,2]
[424114460,1780601434000,-150.0,0.00014729,2]
[424114461,1780601434000,-150.0,0.00014733,2]
[424114456,1780601434000,-436.15092908,0.00014714,2]
[424114458,1780601434000,-150.0,0.00014724,2]
[424114454,1780601434000,-150.0,0.00014709,2]
[424114459,1780601434000,-436.15092908,0.00014729,2]
[424114457,1780601434000,-150.0,0.00014722,2]
[424114465,1780601434000,-150.0,0.00014737,2]
[424114467,1780601434000,-436.15092908,0.00014744,2]
[424114466,1780601434000,-150.0,0.00014743,2]
[424114469,1780601434000,-8968.81116843,0.00014753,2]
[424114464,1780601434000,-7622.9504405,0.00014735,2]
[424114462,1780601434000,-52392.86662382,0.00014735,2]
[424114463,1780601434000,-10042.84244815,0.00014735,2]
[424114468,1780601434000,-20164.84027957,0.00014753,2]
[424114470,1780601436000,489.16413379,0.00014453,7]
[424114472,1780601437000,500.0,0.00013813,2]
[424114471,1780601437000,489.16413379,0.00014742,7]
[424114490,1780601438000,-150.0,0.00014799,2]
[424114493,1780601438000,-70058.65951238,0.00014808,2]
[424114492,1780601438000,-436.15092908,0.00014805,2]
[424114487,1780601438000,-70058.65951238,0.0001479,2]
[424114496,1780601438000,-150.0,0.00014815,2]
[424114495,1780601438000,-30963.1126178,0.00014811,2]
[424114500,1780601438000,-436.15092908,0.0001482,2]
[424114499,1780601438000,-150.0,0.0001482,2]
[424114501,1780601438000,-30963.1126178,0.00014822,2]
[424114497,1780601438000,-150.0,0.00014817,2]
[424114491,1780601438000,-30963.11261789,0.000148,2]
[424114498,1780601438000,-150.0,0.00014818,2]
[424114506,1780601438000,-150.0,0.00014839,2]
[424114488,1780601438000,-150.0,0.00014792,2]
[424114478,1780601438000,-150.0,0.00014762,2]
[424114486,1780601438000,-436.15092908,0.0001479,2]
[424114494,1780601438000,-150.0,0.0001481,2]
[424114483,1780601438000,-436.15092908,0.00014774,2]
[424114485,1780601438000,-150.0,0.0001478,2]
[424114484,1780601438000,-150.0,0.00014775,2]
[424114476,1780601438000,-150.0,0.00014754,2]
[424114474,1780601438000,-704.286385,0.00014182,2]
[424114479,1780601438000,-150.0,0.00014764,2]
[424114481,1780601438000,-150.0,0.00014772,2]
[424114475,1780601438000,-40925.00806438,0.00014753,2]
[424114480,1780601438000,-70058.65951238,0.00014772,2]
[424114477,1780601438000,-436.15092908,0.00014759,2]
[424114482,1780601438000,-150.0,0.00014772,2]
[424114503,1780601438000,-30963.1126178,0.00014833,2]
[424114489,1780601438000,-150.0,0.00014796,2]
[424114502,1780601438000,-70058.65951238,0.00014827,2]
[424114526,1780601438000,-30963.1126178,0.00014889,2]
[424114504,1780601438000,-436.15092908,0.00014835,2]
[424114505,1780601438000,-150.0,0.00014836,2]
[424114534,1780601438000,-30963.1126178,0.000149,2]
[424114536,1780601438000,-6963.48540009,0.000149,2]
[424114535,1780601438000,-300.78547226,0.000149,2]
[424114533,1780601438000,-278.253208,0.000149,2]
[424114531,1780601438000,-293.6013759,0.000149,2]
[424114532,1780601438000,-2274.60278587,0.000149,2]
[424114530,1780601438000,-2213.32341035,0.000149,2]
[424114528,1780601438000,-436.15092908,0.00014895,2]
[424114525,1780601438000,-70058.65951238,0.00014882,2]
[424114527,1780601438000,-150.0,0.00014893,2]
[424114523,1780601438000,-436.15092908,0.0001488,2]
[424114524,1780601438000,-150.0,0.00014881,2]
[424114519,1780601438000,-30963.1126178,0.00014867,2]
[424114529,1780601438000,-150.0,0.00014898,2]
[424114521,1780601438000,-150.0,0.00014875,2]
[424114508,1780601438000,-30963.1126178,0.00014844,2]
[424114518,1780601438000,-436.15092908,0.00014865,2]
[424114509,1780601438000,-70058.65951238,0.00014845,2]
[424114510,1780601438000,-150.0,0.00014848,2]
[424114511,1780601438000,-436.15092908,0.0001485,2]
[424114514,1780601438000,-30963.1126178,0.00014856,2]
[424114512,1780601438000,-2190.78,0.00014855,2]
[424114507,1780601438000,-500.0,0.00014841,2]
[424114513,1780601438000,-150.0,0.00014855,2]
[424114515,1780601438000,-150.0,0.00014858,2]
[424114517,1780601438000,-70058.65951238,0.00014863,2]
[424114516,1780601438000,-150.0,0.0001486,2]
[424114520,1780601438000,-150.0,0.00014874,2]
[424114522,1780601438000,-30963.1126178,0.00014878,2]
[424114560,1780601439000,-436.15092908,0.00014971,2]
[424114556,1780601439000,-436.15092908,0.00014956,2]
[424114562,1780601439000,-292.16,0.00014985,2]
[424114563,1780601439000,-212.86,0.00014985,2]
[424114561,1780601439000,-153.61,0.00014985,2]
[424114564,1780601439000,-174.38,0.00014985,2]
[424114565,1780601439000,-482.77,0.00014985,2]
[424114566,1780601439000,-846.19,0.00014985,2]
[424114572,1780601439000,-150.0,0.00014986,2]
[424114569,1780601439000,-167.55654101,0.00014986,2]
[424114558,1780601439000,-150.0,0.00014965,2]
[424114568,1780601439000,-150.0,0.00014986,2]
[424114570,1780601439000,-203.65201983,0.00014986,2]
[424114573,1780601439000,-234.53277191,0.00014986,2]
[424114574,1780601439000,-255.55391507,0.00014986,2]
[424114576,1780601439000,-150.29556707,0.00014986,2]
[424114575,1780601439000,-269.76160518,0.00014986,2]
[424114567,1780601439000,-150.00000001,0.00014986,2]
[424114559,1780601439000,-150.0,0.00014968,2]
[424114542,1780601439000,-150.0,0.00014902,2]
[424114557,1780601439000,-150.0,0.00014959,2]
[424114577,1780601439000,-153.68714804,0.00014986,2]
[424114537,1780601439000,-2636.02784629,0.000149,2]
[424114538,1780601439000,-215.73193741,0.000149,2]
[424114540,1780601439000,-70058.65951238,0.000149,2]
[424114539,1780601439000,-1448.3971407,0.000149,2]
[424114541,1780601439000,-150.0,0.00014901,2]
[424114543,1780601439000,-150.0,0.00014903,2]
[424114545,1780601439000,-150.0,0.00014911,2]
[424114555,1780601439000,-150.0,0.00014949,2]
[424114544,1780601439000,-436.15092908,0.00014911,2]
[424114548,1780601439000,-436.15092908,0.00014926,2]
[424114549,1780601439000,-150.0,0.0001493,2]
[424114552,1780601439000,-236.3,0.00014941,2]
[424114547,1780601439000,-179.5065138,0.00014925,2]
[424114551,1780601439000,-436.15092908,0.00014941,2]
[424114550,1780601439000,-150.0,0.00014931,2]
[424114554,1780601439000,-150.0,0.00014944,2]
[424114553,1780601439000,-150.0,0.00014943,2]
[424114546,1780601439000,-150.0,0.00014923,2]
[424114580,1780601439000,-1012.77553445,0.0001499,2]
[424114571,1780601439000,-150.20173428,0.00014986,2]
[424114578,1780601439000,-436.15092908,0.00014986,2]
[424114601,1780601439000,-500.0,0.00015,2]
[424114599,1780601439000,-11145310.16662562,0.00015,2]
[424114603,1780601439000,-500.0,0.00015,2]
[424114607,1780601439000,-500.0,0.00015,2]
[424114608,1780601439000,-500.0,0.00015,2]
[424114606,1780601439000,-500.0,0.00015,2]
[424114611,1780601439000,-500.0,0.00015,2]
[424114609,1780601439000,-500.0,0.00015,2]
[424114604,1780601439000,-500.0,0.00015,2]
[424114612,1780601439000,-500.0,0.00015,2]
[424114614,1780601439000,-500.0,0.00015,2]
[424114615,1780601439000,-500.0,0.00015,2]
[424114616,1780601439000,-500.0,0.00015,2]
[424114617,1780601439000,-500.0,0.00015,2]
[424114619,1780601439000,-500.0,0.00015,2]
[424114620,1780601439000,-500.0,0.00015,2]
[424114618,1780601439000,-500.0,0.00015,2]
[424114583,1780601439000,-500.0,0.00014999,2]
[424114610,1780601439000,-500.0,0.00015,2]
[424114602,1780601439000,-500.0,0.00015,2]
[424114613,1780601439000,-500.0,0.00015,2]
[424114598,1780601439000,-666.0,0.00014999,2]
[424114582,1780601439000,-151.0,0.00014997,2]
[424114600,1780601439000,-10809471.48791517,0.00015,2]
[424114579,1780601439000,-1012.77553445,0.0001499,2]
[424114581,1780601439000,-1012.77553445,0.0001499,2]
[424114584,1780601439000,-500.0,0.00014999,2]
[424114585,1780601439000,-500.0,0.00014999,2]
[424114588,1780601439000,-500.0,0.00014999,2]
[424114591,1780601439000,-500.0,0.00014999,2]
[424114589,1780601439000,-500.0,0.00014999,2]
[424114587,1780601439000,-500.0,0.00014999,2]
[424114597,1780601439000,-227.3133159,0.00014999,2]
[424114586,1780601439000,-500.0,0.00014999,2]
[424114592,1780601439000,-500.0,0.00014999,2]
[424114594,1780601439000,-500.0,0.00014999,2]
[424114593,1780601439000,-468.71568627,0.00014999,2]
[424114596,1780601439000,-500.0,0.00014999,2]
[424114595,1780601439000,-500.0,0.00014999,2]
[424114590,1780601439000,-500.0,0.00014999,2]
[424114605,1780601439000,-500.0,0.00015,2]
[424114663,1780601440000,-151.0,0.00015,2]
[424114657,1780601440000,-500.0,0.00015,2]
[424114658,1780601440000,-500.0,0.00015,2]
[424114649,1780601440000,-500.0,0.00015,2]
[424114655,1780601440000,-500.0,0.00015,2]
[424114651,1780601440000,-500.0,0.00015,2]
[424114645,1780601440000,-500.0,0.00015,2]
[424114660,1780601440000,-298.342053,0.00015,2]
[424114656,1780601440000,-500.0,0.00015,2]
[424114659,1780601440000,-500.0,0.00015,2]
[424114671,1780601440000,-489.16413379,0.00015176,7]
[424114662,1780601440000,-151.0,0.00015,2]
[424114665,1780601440000,-151.0,0.00015,2]
[424114664,1780601440000,-151.0,0.00015,2]
[424114669,1780601440000,-500.0,0.00015115,2]
[424114667,1780601440000,-151.0,0.00015068,2]
[424114668,1780601440000,-580.71,0.00015068,2]
[424114670,1780601440000,-1050.28441449,0.00015176,7]
[424114672,1780601440000,-5597.53,0.00015213,2]
[424114654,1780601440000,-500.0,0.00015,2]
[424114661,1780601440000,-553.1,0.00015,2]
[424114641,1780601440000,-500.0,0.00015,2]
[424114624,1780601440000,-500.0,0.00015,2]
[424114653,1780601440000,-500.0,0.00015,2]
[424114623,1780601440000,-500.0,0.00015,2]
[424114621,1780601440000,-500.0,0.00015,2]
[424114622,1780601440000,-500.0,0.00015,2]
[424114673,1780601440000,-616.34,0.000153,2]
[424114625,1780601440000,-500.0,0.00015,2]
[424114626,1780601440000,-500.0,0.00015,2]
[424114627,1780601440000,-500.0,0.00015,2]
[424114631,1780601440000,-500.0,0.00015,2]
[424114630,1780601440000,-500.0,0.00015,2]
[424114628,1780601440000,-500.0,0.00015,2]
[424114629,1780601440000,-500.0,0.00015,2]
[424114632,1780601440000,-500.0,0.00015,2]
[424114634,1780601440000,-500.0,0.00015,2]
[424114633,1780601440000,-500.0,0.00015,2]
[424114639,1780601440000,-500.0,0.00015,2]
[424114637,1780601440000,-500.0,0.00015,2]
[424114640,1780601440000,-500.0,0.00015,2]
[424114636,1780601440000,-500.0,0.00015,2]
[424114638,1780601440000,-500.0,0.00015,2]
[424114635,1780601440000,-500.0,0.00015,2]
[424114642,1780601440000,-500.0,0.00015,2]
[424114643,1780601440000,-500.0,0.00015,2]
[424114675,1780601440000,-555.87165296,0.00015346,2]
[424114666,1780601440000,-282.83,0.00015001,2]
[424114677,1780601440000,-500.0,0.00015389,2]
[424114702,1780601440000,-152.0,0.00016,2]
[424114704,1780601440000,-302.87295711,0.00016,2]
[424114703,1780601440000,-152.0,0.00016,2]
[424114707,1780601440000,-152.0,0.00016022,2]
[424114706,1780601440000,-152.0,0.00016022,2]
[424114708,1780601440000,-152.0,0.00016022,2]
[424114710,1780601440000,-152.0,0.00016022,2]
[424114709,1780601440000,-152.0,0.00016022,2]
[424114711,1780601440000,-152.0,0.00016022,2]
[424114714,1780601440000,-1091.020523,0.00016104,2]
[424114713,1780601440000,-1000.0,0.00016104,2]
[424114715,1780601440000,-242.76427876,0.00016105,2]
[424114716,1780601440000,-1050.28441449,0.00016187,7]
[424114717,1780601440000,-302.87295711,0.000162,2]
[424114722,1780601440000,-166.66,0.00016317,2]
[424114719,1780601440000,-165.7,0.00016279,2]
[424114720,1780601440000,-198.6,0.00016279,2]
[424114723,1780601440000,-407.30116429,0.00016348,2]
[424114718,1780601440000,-500.0,0.00016211,2]
[424114721,1780601440000,-153.35,0.00016295,2]
[424114676,1780601440000,-58380.94294436,0.00015347,2]
[424114700,1780601440000,-152.0,0.00016,2]
[424114697,1780601440000,-152.0,0.00015977,2]
[424114712,1780601440000,-302.87295711,0.000161,2]
[424114699,1780601440000,-152.0,0.00016,2]
[424114678,1780601440000,-250.0,0.00015515,2]
[424114701,1780601440000,-152.0,0.00016,2]
[424114674,1780601440000,-255.0,0.00015321,2]
[424114679,1780601440000,-193.0,0.00015516,2]
[424114680,1780601440000,-300.0,0.00015519,2]
[424114681,1780601440000,-150.57175261,0.00015519,2]
[424114682,1780601440000,-250.0,0.00015519,2]
[424114685,1780601440000,-1050.28441449,0.00015609,7]
[424114694,1780601440000,-168.38,0.00015977,2]
[424114687,1780601440000,-285.78132935,0.00015645,7]
[424114689,1780601440000,-765.76,0.00015675,2]
[424114683,1780601440000,-500.0,0.00015519,2]
[424114696,1780601440000,-152.0,0.00015977,2]
[424114684,1780601440000,-150.0,0.00015552,2]
[424114688,1780601440000,-500.0,0.00015663,2]
[424114686,1780601440000,-152.36982602,0.00015627,2]
[424114693,1780601440000,-500.0,0.00015937,2]
[424114690,1780601440000,-1000.0,0.00015709,2]
[424114692,1780601440000,-155.14,0.00015781,2]
[424114698,1780601440000,-152.0,0.00016,2]
[424114705,1780601440000,-152.0,0.00016022,2]
[424114691,1780601440000,-500.0,0.00015759,2]
[424114695,1780601440000,-152.0,0.00015977,2]
[424114757,1780601441000,-3135.14566189,0.00016805,2]
[424114761,1780601441000,-151.0,0.00016805,2]
[424114753,1780601441000,-150.0,0.00016796,2]
[424114775,1780601441000,-151.0,0.00016805,2]
[424114759,1780601441000,-1500000.0,0.00016805,2]
[424114756,1780601441000,-151.0,0.00016802,2]
[424114763,1780601441000,-151.0,0.00016805,2]
[424114755,1780601441000,-151.0,0.00016802,2]
[424114773,1780601441000,-1541.829306,0.00016805,2]
[424114771,1780601441000,-1541.829306,0.00016805,2]
[424114791,1780601441000,-500.0,0.00016904,2]
[424114769,1780601441000,-1541.829306,0.00016805,2]
[424114785,1780601441000,-151.0,0.00016902,2]
[424114810,1780601441000,-765.01,0.00016904,2]
[424114793,1780601441000,-518.47027343,0.00016904,2]